bitfinex/quotes_ETHUSD_20251021
["timestamp","ask_amount","ask_price","bid_price","bid_amount"]
[1761022909480,0.001,3863.6,3863.5,0.1288]
[1761022909687,0.4316,3863.6,3863.5,2.58832664]
[1761022910596,0.4316,3863.6,3863.4,2.59033255]
[1761022911277,0.4316,3863.6,3863.5,5.93832664]
[1761022911684,0.001,3863.6,3863.5,5.93832664]
[1761022911995,0.4316,3863.6,3863.5,3.35]
[1761022912299,0.4316,3863.6,3863.4,0.002]
[1761022912478,0.001,3863.6,3863.5,5.93832664]
[1761022913182,0.001,3863.6,3863.5,5.93732664]
[1761022914916,0.4316,3863.6,3863.5,5.93732664]
[1761022915291,0.001,3863.6,3863.5,5.93732664]
[1761022918419,0.001,3863.6,3863.5,6.79010502]
[1761022918724,0.001,3863.6,3863.5,6.89050502]
[1761022919428,0.001,3863.6,3863.5,6.79010502]
[1761022919598,0.001,3863.6,3863.5,6.91890502]
[1761022921020,0.001,3863.6,3863.5,3.56990502]
[1761022921212,0.001,3863.6,3863.5,6.06512664]
[1761022921411,0.001,3863.6,3863.5,3.22400664]
[1761022921615,0.001,3863.6,3863.5,6.57200664]
[1761022921815,0.001,3863.6,3863.5,3.22400664]
[1761022922324,0.001,3863.6,3863.5,6.57200664]
[1761022922838,0.001,3863.6,3863.5,3.63337302]
[1761022923021,0.001,3863.6,3863.5,6.06512664]
[1761022923890,0.001,3863.6,3863.5,6.67240664]
[1761022924094,0.688,3865.1,3864.9,2.58735562]
[1761022924325,0.688,3865.1,3864.2,2.58782518]
[1761022924326,0.4538,3865.0,3864.8,2.58740994]
[1761022924499,0.4538,3865.0,3864.9,2.58738906]
[1761022924835,0.2342,3865.1,3865.0,2.58732212]
[1761022925134,0.2342,3865.1,3863.6,3.19553965]
[1761022925135,8.06355754,3865.0,3863.6,3.19553965]
[1761022925335,8.06355754,3865.0,3863.7,0.31975396]
[1761022925635,0.2342,3865.1,3865.0,2.58732212]
[1761022925880,0.2342,3865.1,3865.0,3.254]
[1761022925994,0.4538,3865.1,3865.0,3.254]
[1761022926190,0.4538,3865.1,3865.0,5.84132212]
[1761022926604,1.9574,3865.2,3865.1,2.58725518]
[1761022926821,0.2294,3865.2,3865.1,2.58725518]
[1761022927158,0.4538,3865.4,3865.3,2.58712131]
[1761022927456,0.4538,3865.4,3865.3,5.93512131]
[1761022927619,0.4538,3865.4,3865.3,2.58712131]
[1761022927822,0.4538,3865.4,3865.3,5.93412131]
[1761022928024,0.4538,3865.4,3865.3,2.58712131]
[1761022928223,0.4538,3865.4,3865.0,2.58726215]
[1761022928440,1.728,3865.2,3865.1,5.93420027]
[1761022928620,0.4538,3865.4,3865.2,2.58718085]
[1761022928819,2.1818,3865.5,3865.2,2.58718085]
[1761022929062,0.4538,3865.5,3865.4,2.58705437]
[1761022929351,0.4538,3865.5,3865.4,5.93405437]
[1761022929733,1.728,3865.7,3865.4,3.347]
[1761022930029,0.4538,3865.5,3865.4,5.93403618]
[1761022930956,0.2353,3866.3,3864.7,0.0504]
[1761022931119,0.2353,3866.3,3864.3,0.1004]
[1761022931120,7.60975754,3865.3,3864.4,2.63812383]
[1761022931319,0.2294,3864.5,3864.1,0.12733052]
[1761022931524,0.2294,3864.5,3864.4,2.58772383]
[1761022931842,0.4538,3864.4,3863.4,0.002]
[1761022932015,8.06355754,3864.4,3863.5,5.93532651]
[1761022932218,0.4538,3864.3,3863.4,0.002]
[1761022932450,0.4538,3864.3,3863.8,2.58811877]
[1761022932655,0.4538,3864.3,3863.5,2.58832664]
[1761022932656,2.1818,3864.3,3863.5,2.58832664]
[1761022932827,2.1818,3864.3,3863.4,0.002]
[1761022932828,0.2294,3863.5,3863.4,0.002]
[1761022933249,0.6832,3863.5,3863.4,0.002]
[1761022935138,0.2294,3863.5,3863.4,2.59039364]
[1761022936253,0.1288,3863.6,3863.4,5.93639364]
[1761022936460,0.577,3863.6,3863.4,3.348]
[1761022936622,0.4482,3863.5,3863.4,3.348]
[1761022936962,0.4482,3863.5,3863.4,0.002]
[1761022937324,0.4482,3863.5,3863.4,1.924]
[1761022938256,0.1288,3863.6,3863.4,1.924]
[1761022938556,0.4482,3863.5,3863.4,1.924]
[1761022939750,0.1288,3863.6,3863.4,3.348]
[1761022939949,0.4482,3863.5,3863.4,3.348]
[1761022943566,22.69776381,3863.5,3863.4,0.002]
[1761022943864,1.728,3863.4,3863.1,0.002]
[1761022944041,2.1762,3863.4,3863.1,0.002]
[1761022944233,0.4482,3863.3,3863.1,0.002]
[1761022945547,0.85421076,3863.3,3863.1,0.002]
[1761022945969,0.4482,3863.2,3863.1,0.002]
[1761022946480,25.79317145,3863.2,3863.1,0.002]
[1761022947665,4.82374271,3862.7,3862.5,0.002]
[1761022947870,4.82407786,3862.2,3861.7,0.002]
[1761022948048,2.23488,3861.7,3859.6,0.10385469]
[1761022948243,2.23488,3861.7,3859.5,2.59594647]
[1761022948244,0.2346,3860.0,3859.5,2.59594647]
[1761022948458,0.2346,3860.0,3859.5,0.005]
[1761022948645,0.2346,3860.0,3859.5,0.002]
[1761022948646,0.6828,3860.0,3859.5,0.002]
[1761022949278,22.97863616,3860.0,3859.5,0.002]
[1761022950677,22.97863616,3860.0,3859.5,2.59299617]
[1761022950881,22.97863616,3860.0,3859.5,0.002]
[1761022952492,1.9626,3860.0,3859.5,0.002]
[1761022952671,1.9626,3860.0,3859.7,2.59081792]
[1761022953320,2.4331,3860.0,3859.5,0.002]
[1761022953526,1.728,3860.0,3859.8,2.59074198]
[1761022953693,1.728,3860.0,3859.5,0.002]
[1761022954024,22.76633616,3860.0,3859.5,0.002]
[1761022957334,22.76633616,3860.0,3859.5,2.5929965]
[1761022958074,22.76633616,3860.0,3859.5,0.002]
[1761022958271,22.76633616,3860.0,3859.5,2.59299433]
[1761022958472,2.1985,3860.0,3859.5,0.002]
[1761022958677,1.728,3860.0,3859.7,2.59087008]
[1761022958876,1.728,3860.0,3859.9,2.59274069]
[1761022959278,0.4705,3860.4,3860.0,2.59066255]
[1761022959520,0.1288,3860.0,3859.9,0.002]
[1761022959722,0.1288,3860.0,3859.9,2.59274069]
[1761022960414,0.4705,3861.2,3860.7,2.59014254]
[1761022960589,30.70783616,3861.4,3860.5,2.59033803]
[1761022960590,0.1288,3860.6,3860.5,2.59033803]
[1761022960792,0.1288,3860.9,3860.3,0.1288]
[1761022960993,0.3516,3860.9,3860.3,0.1288]
[1761022961314,0.3516,3860.9,3860.1,2.59059042]
[1761022961315,2.4213,3860.9,3860.1,2.59059042]
[1761022961811,1.9508,3860.9,3860.1,2.59059042]
[1761022962010,2.4213,3860.9,3860.1,2.59059042]
[1761022962308,0.4705,3860.8,3860.1,2.59059042]
[1761022962522,0.4705,3860.8,3859.9,3.35]
[1761022962731,0.40627774,3861.0,3860.0,0.45644]
[1761022962883,0.2228,3860.8,3860.2,2.59053395]
[1761022963082,0.2228,3860.8,3860.0,2.93669603]
[1761022963285,0.6933,3860.8,3860.3,2.59046614]
[1761022963488,0.6933,3860.8,3860.3,2.59041023]
[1761022963889,0.4705,3860.7,3860.1,2.59060646]
[1761022964099,0.4705,3860.7,3860.3,2.59042456]
[1761022964392,0.2228,3860.8,3860.0,3.348]
[1761022964590,0.6933,3860.8,3859.9,0.002]
[1761022964812,1.728,3860.5,3859.9,0.002]
[1761022965211,2.1985,3860.5,3859.9,0.002]
[1761022965622,0.4705,3860.4,3859.9,0.002]
[1761022966537,1.728,3860.1,3859.9,0.002]
[1761022966938,0.4705,3860.0,3859.9,0.002]
[1761022968034,1.728,3860.1,3859.9,0.002]
[1761022968967,1.728,3860.5,3859.9,0.002]
[1761022969111,0.2228,3860.8,3859.9,0.002]
[1761022969314,0.2228,3860.8,3860.3,2.5904517]
[1761022970763,0.40627774,3861.0,3860.9,2.59006967]
[1761022971055,20.56783616,3861.5,3861.0,2.58999133]
[1761022971357,20.56783616,3861.5,3861.1,2.5899181]
[1761022971560,0.1288,3861.1,3861.0,2.58998921]
[1761022971852,0.1288,3860.9,3860.4,5.93734754]
[1761022972041,0.1288,3860.9,3860.6,2.59025759]
[1761022972217,0.1288,3860.9,3860.7,2.59019437]
[1761022972416,0.2228,3860.8,3860.5,3.347]
[1761022972611,0.6933,3860.8,3860.5,3.347]
[1761022972942,1.728,3861.0,3860.6,2.59026673]
[1761022973135,0.1288,3860.6,3860.4,2.59035507]
[1761022973319,0.1288,3860.6,3860.1,3.347]
[1761022973320,0.1288,3860.6,3860.3,2.59046727]
[1761022973519,0.1288,3860.6,3860.1,3.347]
[1761022973949,0.1288,3860.6,3860.4,2.59035006]
[1761022974153,0.1288,3860.6,3860.2,5.93747376]
[1761022974309,0.5993,3860.6,3860.3,2.59045773]
[1761022974743,0.1288,3860.6,3860.5,2.59033803]
[1761022976653,0.1288,3860.6,3860.5,2.59032717]
[1761022978028,0.5993,3860.6,3860.2,2.5905161]
[1761022978230,0.1288,3860.3,3859.9,0.002]
[1761022978525,1.728,3860.5,3860.0,3.347]
[1761022978838,0.4705,3860.2,3860.0,3.347]
[1761022979038,0.1288,3860.0,3859.9,2.59271959]
[1761022979431,0.1288,3860.0,3859.9,0.002]
[1761022980047,0.1288,3860.0,3859.9,2.59274069]
[1761022980255,0.1288,3860.0,3859.9,5.93974069]
[1761022981830,0.1288,3860.0,3859.9,0.002]
[1761022982034,0.1288,3860.0,3859.9,5.93974069]
[1761022983083,0.1288,3860.0,3859.9,2.59274069]
[1761022983274,0.1288,3860.0,3859.9,5.93874069]
[1761022984189,0.1288,3860.0,3859.9,0.002]
[1761022984482,0.5848,3860.0,3859.9,0.002]
[1761022986588,4.90347357,3860.0,3859.9,0.002]
[1761022986888,4.31894206,3859.6,3859.5,0.002]
[1761022987186,2.59116705,3859.3,3859.1,0.002]
[1761022987373,20.56783616,3859.2,3859.1,0.002]
[1761022987982,21.02383616,3859.2,3859.1,0.002]
[1761022988896,20.56783616,3859.2,3859.1,0.002]
[1761022989193,1.728,3859.3,3859.1,0.002]
[1761022989377,21.02383616,3860.6,3859.3,2.59114347]
[1761022989574,0.1288,3859.9,3859.8,2.59080781]
[1761022989843,0.2228,3860.7,3860.1,2.59055657]
[1761022989990,0.1288,3860.1,3859.7,0.02590874]
[1761022990190,0.1288,3860.1,3860.0,2.59067357]
[1761022990721,0.1288,3860.1,3859.1,0.002]
[1761022991039,1.728,3859.3,3859.1,0.002]
[1761022991924,0.456,3859.2,3859.1,0.002]
[1761022994755,4.77521061,3859.2,3859.1,0.002]
[1761022995052,2.184,3859.2,3859.1,0.002]
[1761022995450,4.77521061,3859.2,3859.1,0.002]
[1761022995618,2.184,3859.2,3859.1,0.002]
[1761022995818,4.77521061,3859.2,3859.1,0.002]
[1761022996034,2.184,3859.2,3859.1,0.002]
[1761022997619,4.77521061,3859.2,3859.1,0.002]
[1761022998322,2.184,3859.2,3859.1,0.002]
[1761022998832,4.77521061,3859.2,3859.1,0.002]
[1761022999156,5.18166464,3859.2,3859.1,0.002]
[1761022999368,2.59147921,3858.8,3858.7,0.002]
[1761022999575,0.50688,3858.5,3858.3,0.002]
[1761022999720,2.5916613,3858.6,3856.8,0.002]
[1761022999721,4.32001658,3858.0,3856.8,0.002]
[1761023000057,22.29583616,3858.0,3856.8,0.002]
[1761023000224,22.72343616,3858.0,3856.9,2.59275121]
[1761023000421,22.72343616,3858.0,3857.2,2.59248916]
[1761023000626,22.29583616,3858.0,3857.1,0.0604]
[1761023000942,22.72343616,3858.0,3857.3,2.59247242]
[1761023001734,22.72343616,3858.0,3857.1,2.65297167]
[1761023001944,22.72343616,3858.0,3857.1,0.002]
[1761023002970,21.52734415,3858.0,3857.1,0.002]
[1761023003168,24.11936073,3858.0,3857.1,0.002]
[1761023003552,24.62624073,3858.0,3857.1,0.002]
[1761023003950,21.52734415,3858.0,3857.1,0.002]
[1761023004277,21.52734415,3858.0,3857.1,0.0604]
[1761023004481,21.12072852,3858.0,3857.1,0.0604]
[1761023005582,2.1556,3858.0,3857.1,0.0604]
[1761023005752,1.728,3858.0,3857.1,0.0604]
[1761023005947,1.728,3858.0,3857.3,2.59242585]
[1761023006774,2.1556,3858.0,3857.2,2.59253462]
[1761023006989,1.728,3858.0,3857.3,2.59248581]
[1761023007290,1.728,3858.0,3857.1,0.002]
[1761023007291,5.25449658,3858.0,3857.1,0.002]
[1761023007577,5.66113524,3858.0,3857.1,0.002]
[1761023007881,21.52736718,3858.0,3857.1,0.002]
[1761023008092,21.52736718,3858.0,3857.2,2.59249203]
[1761023008384,2.13463866,3858.0,3857.4,2.59236398]
[1761023008840,2.13463866,3858.0,3857.2,0.1204]
[1761023008841,2.13463866,3858.0,3857.3,2.59246545]
[1761023009042,2.56223866,3858.0,3857.1,0.002]
[1761023009443,2.56223866,3858.0,3857.1,2.59461151]
[1761023009767,2.13463866,3858.0,3857.3,2.59247278]
[1761023010367,2.13463866,3858.0,3857.4,2.59236876]
[1761023010885,2.13463866,3858.0,3857.4,2.59241168]
[1761023011277,1.728,3858.0,3857.3,2.59246772]
[1761023011443,1.728,3858.0,3857.4,2.59241154]
[1761023011954,1.728,3858.0,3857.3,2.59247004]
[1761023012153,1.728,3858.0,3857.5,0.002]
[1761023012362,2.13455678,3858.0,3857.5,0.002]
[1761023013157,2.60725678,3858.0,3857.5,0.002]
[1761023013359,5.19927336,3858.0,3857.5,0.002]
[1761023014874,5.6059558,3858.0,3857.5,0.002]
[1761023016768,6.1128358,3858.0,3857.5,0.002]
[1761023022891,5.19939902,3858.0,3857.5,0.002]
[1761023023054,5.19939902,3858.0,3856.5,0.002]
[1761023023055,3.09963584,3856.9,3856.5,0.002]
[1761023023257,5.51993584,3856.9,3856.5,0.002]
[1761023023454,5.82045733,3856.9,3856.5,0.002]
[1761023023686,3.09983752,3856.6,3856.5,0.002]
[1761023023891,23.79296604,3856.6,3856.5,0.002]
[1761023024073,24.26566604,3856.6,3856.5,0.002]
[1761023025069,24.67246249,3856.6,3856.5,0.002]
[1761023025490,24.97298398,3856.6,3856.5,0.002]
[1761023025695,25.37980691,3856.6,3856.5,0.002]
[1761023026006,2.59322649,3856.2,3856.1,0.002]
[1761023026161,23.79350403,3855.8,3855.0,0.002]
[1761023026508,24.09402552,3855.8,3855.0,0.002]
[1761023026707,24.56672552,3855.8,3855.0,0.002]
[1761023026866,24.26620403,3855.8,3855.0,0.002]
[1761023027480,2.59396643,3855.1,3855.0,0.002]
[1761023027705,20.69312852,3855.1,3855.0,0.002]
[1761023029221,1.728,3855.1,3855.0,0.002]
[1761023029426,18.96512852,3855.7,3855.0,0.1244]
[1761023029581,1.728,3855.6,3855.0,0.1244]
[1761023029782,0.81361938,3856.6,3855.0,2.71841484]
[1761023029783,1.728,3856.0,3855.0,2.71841484]
[1761023030015,18.96512852,3856.1,3855.4,2.59376007]
[1761023030320,18.96512852,3856.1,3855.3,0.002]
[1761023030482,18.96512852,3856.1,3855.4,0.1224]
[1761023030686,1.728,3856.0,3855.4,0.1224]
[1761023031019,18.96512852,3856.1,3855.3,0.002]
[1761023031220,1.728,3855.6,3855.3,0.002]
[1761023031716,1.728,3855.6,3855.4,0.1224]
[1761023032020,1.728,3855.7,3855.3,0.1244]
[1761023033213,20.69312852,3855.4,3855.3,0.002]
[1761023033577,23.7595931,3855.4,3855.3,0.002]
[1761023033783,24.2664731,3855.4,3855.3,0.002]
[1761023034926,24.67337722,3855.4,3855.3,0.002]
[1761023035128,24.16649722,3855.4,3855.3,0.002]
[1761023035729,21.10003264,3855.4,3855.3,0.002]
[1761023036031,21.50690267,3855.4,3855.3,0.002]
[1761023038037,19.77890267,3855.4,3855.3,0.002]
[1761023038398,0.40690412,3855.4,3855.3,0.1244]
[1761023039033,0.40690412,3855.4,3855.3,0.002]
[1761023040612,21.10003264,3855.4,3855.3,0.002]
[1761023041425,2.54175063,3855.4,3855.3,0.002]
[1761023041739,1.728,3855.4,3855.3,0.1244]
[1761023041939,21.5581717,3856.5,3855.3,0.39643534]
[1761023042109,3.0308951,3856.7,3855.3,0.39643534]
[1761023042110,18.96512852,3856.1,3855.3,2.5958189]
[1761023042438,1.728,3855.6,3855.3,0.002]
[1761023043936,0.438,3855.5,3855.3,0.002]
[1761023044103,3.03176458,3855.4,3855.3,0.002]
[1761023044935,3.00063083,3855.4,3855.3,0.002]
[1761023045144,21.09999477,3855.4,3855.3,0.002]
[1761023045320,20.69312852,3855.4,3855.3,0.002]
[1761023047208,1.728,3855.4,3855.3,0.002]
[1761023047405,20.69312852,3855.4,3855.3,0.002]
[1761023048139,21.09995612,3855.4,3855.3,0.002]
[1761023052452,2.1348276,3855.4,3855.3,0.002]
[1761023052755,0.001,3855.7,3855.4,2.59375128]
[1761023052917,0.001,3855.7,3855.4,2.59376458]
[1761023053118,0.001,3855.7,3855.5,0.1224]
[1761023053626,18.96612852,3855.7,3855.3,0.002]
[1761023053821,1.728,3855.6,3855.3,0.002]
[1761023056118,2.13482483,3855.6,3855.3,0.002]
[1761023057269,4.72847055,3855.6,3855.3,0.002]
[1761023057451,2.57812483,3855.6,3855.3,0.002]
[1761023057625,2.1713,3855.5,3855.3,0.002]
[1761023057957,0.4433,3855.5,3855.3,0.002]
[1761023058166,3.03701502,3855.5,3855.3,0.002]
[1761023058369,0.4433,3855.5,3855.3,0.002]
[1761023059152,2.13482483,3855.6,3855.3,0.002]
[1761023059654,5.17181675,3855.6,3855.3,0.002]
[1761023060555,3.03699972,3855.5,3855.3,0.002]
[1761023060760,0.4433,3855.5,3855.3,0.002]
[1761023061273,3.03706458,3855.4,3855.3,0.002]
[1761023061622,3.33758607,3855.4,3855.3,0.002]
[1761023062444,3.03706458,3855.4,3855.3,0.002]
[1761023062859,20.62550444,3855.4,3855.3,0.002]
[1761023063758,1.728,3855.4,3855.3,0.002]
[1761023063958,0.40682483,3855.6,3855.3,0.002]
[1761023063959,0.40682483,3855.6,3855.3,0.1244]
[1761023064161,0.40682483,3855.6,3855.3,0.002]
[1761023064362,2.13482483,3855.6,3855.3,0.002]
[1761023064659,1.728,3855.6,3855.3,0.002]
[1761023065082,0.4433,3855.5,3855.3,0.002]
[1761023065449,1.728,3855.6,3855.3,0.002]
[1761023065670,0.4433,3855.5,3855.3,0.002]
[1761023065847,2.59376458,3855.4,3855.3,0.002]
[1761023066279,3.03706458,3855.4,3855.3,0.002]
[1761023066853,2.1713,3855.6,3855.3,0.002]
[1761023067058,2.59376458,3855.4,3855.3,0.002]
[1761023067449,3.03706458,3855.4,3855.3,0.002]
[1761023067651,3.44395182,3855.4,3855.3,0.002]
[1761023068081,0.40688724,3855.4,3855.3,0.002]
[1761023068270,2.13488724,3855.4,3855.3,0.002]
[1761023068470,0.40688724,3855.4,3855.3,0.002]
[1761023069359,2.13488724,3855.4,3855.3,0.002]
[1761023069563,0.40688724,3855.4,3855.3,0.002]
[1761023071085,0.40688724,3855.4,3855.3,0.1244]
[1761023071585,0.1296,3855.5,3855.3,0.1244]
[1761023071783,0.1296,3855.5,3855.3,0.39642957]
[1761023071983,0.1296,3855.5,3855.4,2.59376458]
[1761023072289,0.001,3855.7,3855.6,2.59363004]
[1761023072470,0.001,3855.7,3855.6,3.12644634]
[1761023072672,0.001,3855.7,3855.6,3.24884634]
[1761023072872,0.001,3855.7,3855.6,3.22291004]
[1761023073059,0.001,3855.7,3855.6,4.1396775]
[1761023073462,0.001,3855.7,3855.6,3.6327975]
[1761023073662,0.001,3855.7,3855.6,2.71603004]
[1761023073866,0.001,3855.7,3855.3,3.351]
[1761023074065,0.001,3855.7,3855.6,0.1224]
[1761023074788,0.001,3855.7,3855.6,2.71603004]
[1761023075193,0.001,3855.7,3855.6,3.22291004]
[1761023075372,0.001,3856.1,3856.0,3.10024099]
[1761023075554,0.001,3856.5,3856.4,3.099972]
[1761023076078,0.001,3856.5,3856.4,3.220372]
[1761023077475,0.001,3856.5,3856.4,6.568372]
[1761023078508,0.001,3856.5,3856.4,2.593092]
[1761023078663,0.001,3856.5,3856.4,2.9788012]
[1761023080397,0.001,3856.5,3856.4,3.51161212]
[1761023080562,0.001,3856.5,3856.4,3.4856812]
[1761023080967,0.001,3856.5,3856.4,3.51161212]
[1761023081578,0.001,3856.5,3856.4,3.4856812]
[1761023082308,0.001,3856.5,3856.4,3.6152812]
[1761023084392,0.001,3856.5,3856.4,6.9622812]
[1761023087396,0.001,3856.5,3856.4,0.9017892]
[1761023087603,0.001,3856.5,3856.4,6.9622812]
[1761023089474,0.001,3856.5,3856.4,6.8418812]
[1761023089692,0.001,3856.5,3856.4,3.4766]
[1761023090101,0.001,3856.5,3856.4,6.069692]
[1761023090499,0.001,3856.5,3856.4,2.722692]
[1761023090702,0.001,3856.5,3856.4,3.347]
[1761023091008,0.1306,3856.5,3856.4,3.347]
[1761023091516,0.1306,3856.5,3856.4,5.940092]
[1761023091686,0.1306,3856.5,3856.4,3.347]
[1761023092294,0.1306,3856.5,3855.8,0.1296]
[1761023092498,20.62550444,3856.2,3855.8,0.1296]
[1761023092703,0.1296,3855.8,3855.1,0.1296]
[1761023092993,0.1296,3855.8,3855.2,1.074]
[1761023092994,0.1296,3855.4,3855.2,1.074]
[1761023094284,0.585,3855.4,3855.2,1.074]
[1761023095217,0.1296,3855.4,3855.2,1.074]
[1761023095808,0.1296,3855.4,3855.0,0.002]
[1761023095998,2.313,3855.4,3855.0,0.002]
[1761023096588,0.1296,3855.4,3855.0,0.002]
[1761023096788,2.313,3855.4,3855.0,0.002]
[1761023098526,4.90676458,3855.4,3855.0,0.002]
[1761023099321,2.313,3855.4,3855.0,0.002]
[1761023100231,4.90676458,3855.4,3855.0,0.002]
[1761023102794,4.32196643,3855.1,3855.0,0.002]
[1761023102989,4.45163372,3855.0,3854.9,0.002]
[1761023103195,4.89473372,3855.0,3854.9,0.002]
[1761023104824,22.79660444,3855.0,3854.9,0.002]
[1761023105001,22.35350444,3855.0,3854.9,0.002]
[1761023105200,1.728,3855.0,3854.9,0.002]
[1761023105529,22.79660444,3855.0,3854.9,0.002]
[1761023106027,2.59429725,3854.7,3854.5,0.002]
[1761023106254,25.18390735,3854.6,3854.5,0.002]
[1761023106401,22.58960444,3854.6,3854.5,0.002]
[1761023106605,23.03270444,3854.6,3854.5,0.002]
[1761023107011,25.62700735,3854.6,3854.5,0.002]
[1761023107325,23.03270444,3854.6,3854.5,0.002]
[1761023108027,25.62700735,3854.6,3854.5,0.002]
[1761023108332,0.2361,3856.0,3854.5,0.002]
[1761023108494,0.1296,3854.9,3854.8,2.5941683]
[1761023108696,0.1296,3854.9,3854.5,0.002]
[1761023108697,20.62550444,3855.1,3854.5,0.002]
[1761023108895,2.13492417,3855.0,3854.5,0.002]
[1761023109320,1.728,3854.6,3854.5,0.002]
[1761023109633,2.13492417,3855.0,3854.5,0.002]
[1761023109818,0.40692417,3855.0,3854.5,2.71872733]
[1761023110025,0.40692417,3855.0,3854.5,3.25004567]
[1761023110229,0.40692417,3855.0,3854.5,0.65571834]
[1761023110544,0.40692417,3855.0,3854.5,0.002]
[1761023110545,1.728,3854.9,3854.5,0.002]
[1761023111610,0.40692417,3855.0,3854.6,2.59427401]
[1761023111834,0.40692417,3855.0,3854.6,2.59428821]
[1761023112066,0.40692417,3855.0,3854.5,2.59633652]
[1761023112208,0.40692417,3855.0,3854.6,2.59428824]
[1761023112408,0.40692417,3855.0,3854.5,0.1244]
[1761023112607,1.728,3855.3,3854.7,2.5942171]
[1761023112810,20.62550444,3854.8,3854.5,0.1244]
[1761023113011,1.728,3854.7,3854.5,0.002]
[1761023114822,0.4431,3854.6,3854.5,0.002]
[1761023115752,1.728,3854.7,3854.5,0.002]
[1761023116047,2.1711,3854.7,3854.5,0.002]
[1761023116256,2.57805646,3854.7,3854.5,0.002]
[1761023116551,22.35350444,3854.6,3854.5,0.002]
[1761023118361,22.78950444,3854.6,3854.5,0.002]
[1761023119363,22.34350444,3854.6,3854.5,0.002]
[1761023120230,22.78950444,3854.6,3854.5,0.002]
[1761023121760,22.34350444,3854.6,3854.5,0.002]
[1761023122835,22.34350444,3854.6,3854.5,0.1244]
[1761023122836,22.35350444,3854.6,3854.5,0.1244]
[1761023123032,0.001,3854.9,3854.5,0.002]
[1761023123234,20.62550444,3854.6,3854.5,0.002]
[1761023123450,22.35350444,3854.6,3854.5,0.002]
[1761023124162,22.79950444,3854.6,3854.5,0.002]
[1761023124328,22.79950444,3854.6,3854.1,0.002]
[1761023124329,2.59444668,3854.4,3854.1,0.002]
[1761023124532,22.35350444,3854.2,3854.1,0.002]
[1761023124843,20.72982141,3854.2,3854.1,0.002]
[1761023125031,21.17582141,3854.2,3854.1,0.002]
[1761023127971,1.728,3854.2,3854.1,0.002]
[1761023128281,1.728,3854.2,3854.1,0.0644]
[1761023129946,19.00182141,3854.4,3854.1,0.0644]
[1761023130947,19.00182141,3854.4,3854.1,2.65903671]
[1761023131370,19.00182141,3854.4,3854.1,0.0644]
[1761023131893,0.001,3854.9,3854.8,2.5941683]
[1761023132053,0.001,3854.9,3854.3,0.50688]
[1761023132372,0.001,3854.9,3854.7,2.59423154]
[1761023132574,0.001,3854.9,3854.6,5.94228723]
[1761023132777,19.00182141,3854.8,3854.6,3.348]
[1761023133278,19.00182141,3854.7,3854.4,3.348]
[1761023133847,0.1306,3854.9,3854.5,0.002]
[1761023134184,19.13242141,3854.9,3854.5,2.59631159]
[1761023134346,19.13242141,3854.9,3854.6,2.59429959]
[1761023134548,19.13242141,3854.9,3854.5,2.59635057]
[1761023135387,19.13242141,3854.9,3854.6,2.59428951]
[1761023135555,0.1306,3854.9,3854.8,2.5941683]
[1761023135969,0.001,3854.9,3854.8,2.5941683]
[1761023136480,0.001,3854.9,3854.8,2.7165683]
[1761023137783,0.001,3854.9,3854.8,5.9421683]
[1761023138853,0.001,3854.9,3854.8,2.5941683]
[1761023139056,0.001,3854.9,3854.8,6.57302653]
[1761023139284,0.001,3854.9,3854.8,6.69542653]
[1761023141410,0.001,3854.9,3854.8,6.57302653]
[1761023141610,0.001,3854.9,3854.8,3.97885823]
[1761023141819,19.00282141,3854.9,3854.6,0.1296]
[1761023142019,0.1296,3854.7,3854.6,3.075]
[1761023142998,1.728,3854.8,3854.6,5.66930291]
[1761023143196,0.1306,3854.9,3854.6,3.075]
[1761023143382,0.001,3854.9,3854.8,2.5941683]
[1761023143578,0.001,3854.9,3854.7,0.1296]
[1761023143821,0.001,3854.9,3854.8,2.5941683]
[1761023144024,0.001,3854.9,3854.8,2.7165683]
[1761023144332,0.001,3854.9,3854.8,3.2234483]
[1761023147384,0.001,3854.9,3854.8,3.37898998]
[1761023147588,0.001,3854.9,3854.8,4.2840142]
[1761023147988,0.001,3854.9,3854.8,4.25807252]
[1761023152621,0.001,3854.9,3854.8,5.98607252]
[1761023154215,0.001,3854.9,3854.8,6.09004978]
[1761023155090,0.001,3854.9,3854.8,9.43604978]
[1761023155291,0.001,3854.9,3854.8,9.33207252]
[1761023155930,0.001,3854.9,3854.8,5.86367252]
[1761023156137,0.001,3854.9,3854.8,9.33207252]
[1761023156801,0.001,3854.9,3854.8,5.98607252]
[1761023156994,0.001,3854.9,3854.8,9.33207252]
[1761023157994,0.001,3854.9,3854.8,5.98607252]
[1761023158206,0.001,3854.9,3854.8,9.33207252]
[1761023161225,0.001,3854.9,3854.8,12.06807252]
[1761023161396,0.001,3854.9,3854.8,12.17203302]
[1761023161613,1e-08,3855.7,3855.6,3.10051004]
[1761023161827,1e-08,3855.7,3855.6,8.76886866]
[1761023161995,1e-08,3855.7,3855.6,5.52033236]
[1761023162196,1e-08,3855.7,3855.6,8.99493236]
[1761023162536,1e-08,3855.7,3855.6,9.21573236]
[1761023163039,1e-08,3855.7,3855.6,5.87073236]
[1761023163225,1e-08,3855.7,3855.6,3.79953236]
[1761023163429,1e-08,3855.7,3855.6,2.72323004]
[1761023163631,1e-08,3855.7,3855.6,6.06823004]
[1761023163949,1e-08,3855.7,3855.6,6.57511004]